bitfinex-derivatives/quotes_SOLF0:USTF0_20250606
["timestamp","ask_amount","ask_price","bid_price","bid_amount"]
[1749222396665,0.04667098,151.21,151.18,6.65174684]
[1749222397267,6.6085,151.2,151.18,0.04244684]
[1749222397464,0.04667098,151.21,151.18,0.04244684]
[1749222397768,6.6089,151.19,151.18,0.04244684]
[1749222398158,56.55779548,151.2,151.12,2.2113]
[1749222398357,20.75779548,151.18,151.1,2.2265]
[1749222398565,20.75779548,151.16,151.08,38.0313]
[1749222398764,56.55779548,151.16,151.08,38.0313]
[1749222398963,6.6107,151.15,151.08,38.0313]
[1749222399267,0.04386281,151.14,151.1,0.04193616]
[1749222399466,0.04386281,151.14,151.12,6.6119]
[1749222399667,0.04386281,151.14,151.1,0.04193616]
[1749222400364,0.04386281,151.14,151.13,6.6115]
[1749222400768,56.55779548,151.22,151.12,35.8]
[1749222401058,56.55779548,151.22,151.13,20.75779548]
[1749222401458,35.8,151.22,151.17,6.6095]
[1749222401658,35.8,151.22,151.13,20.75779548]
[1749222401865,0.04515166,151.19,151.16,0.04677561]
[1749222402068,0.04515166,151.19,151.18,6.6093]
[1749222402572,0.04515166,151.19,151.17,6.6096]
[1749222402770,0.04515166,151.19,151.16,35.84677561]
[1749222403158,0.04515166,151.19,151.18,6.6093]
[1749222405066,35.8,151.28,151.18,20.75779548]
[1749222405268,35.8,151.28,151.2,20.75779548]
[1749222405569,35.8,151.28,151.25,6.606]
[1749222405768,35.8,151.28,151.22,20.75779548]
[1749222406068,0.04893299,151.27,151.23,0.05047027]
[1749222406470,0.04893299,151.27,151.24,20.75779548]
[1749222406859,0.04893299,151.27,151.26,6.6058]
[1749222408270,35.8,151.34,151.25,20.75779548]
[1749222408567,2.1139,151.37,151.25,20.75779548]
[1749222408568,6.6011,151.37,151.34,6.6022]
[1749222408761,6.6011,151.37,151.29,20.75779548]
[1749222408762,2.2727,151.38,151.3,35.8]
[1749222409173,0.04264775,151.36,151.33,6.6025]
[1749222409367,0.04264775,151.36,151.32,0.04284374]
[1749222410567,6.6022,151.35,151.32,0.04284374]
[1749222410769,0.04264775,151.36,151.32,0.04284374]
[1749222411168,6.6028,151.33,151.32,0.04284374]
[1749222412474,20.75779548,151.35,151.26,40.1719]
[1749222412868,6.6051,151.28,151.26,35.8]
[1749222413073,35.78,151.32,151.23,35.78]
[1749222413468,35.78,151.32,151.26,0.04267393]
[1749222413469,0.04193452,151.29,151.26,0.04267393]
[1749222414772,0.04193452,151.29,151.28,6.605]
[1749222415870,35.78,151.35,151.31,6.6035]
[1749222416174,6.6022,151.35,151.27,35.78]
[1749222416377,6.6022,151.35,151.28,20.75779548]
[1749222416572,2.1206,151.37,151.28,20.75779548]
[1749222416975,0.04934157,151.34,151.31,6.64645842]
[1749222417272,0.04934157,151.34,151.31,0.04315842]
[1749222418470,6.6028,151.33,151.31,0.04315842]
[1749222418970,6.6032,151.32,151.31,0.04315842]
[1749222419466,0.04934157,151.34,151.31,0.04315842]
[1749222420864,6.6031,151.33,151.31,0.04315842]
[1749222421065,0.04934157,151.34,151.31,0.04315842]
[1749222421674,0.04934157,151.34,151.33,6.6028]
[1749222421975,35.78,151.38,151.31,56.5809539]
[1749222422275,2.1354,151.41,151.33,20.75779548]
[1749222422276,37.9154,151.41,151.33,20.75779548]
[1749222423076,0.04728622,151.39,151.35,0.04367033]
[1749222423277,0.04728622,151.39,151.35,47.98529389]
[1749222423467,0.04728622,151.39,151.35,35.82367033]
[1749222423673,0.04728622,151.39,151.35,0.04367033]
[1749222424174,12.16162356,151.36,151.35,0.04367033]
[1749222424372,18.76312356,151.36,151.35,0.04367033]
[1749222424577,36.8,151.37,151.35,0.04367033]
[1749222424775,0.04728622,151.39,151.35,0.04367033]
[1749222425576,6.6013,151.37,151.35,0.04367033]
[1749222426074,0.04728622,151.39,151.35,0.04367033]
[1749222426275,6.6009,151.38,151.35,0.04367033]
[1749222426474,0.04728622,151.39,151.35,0.04367033]
[1749222427879,6.6009,151.38,151.35,6.64547033]
[1749222428178,0.04728622,151.39,151.35,0.04367033]
[1749222428478,0.04728622,151.39,151.36,6.6011]
[1749222428678,0.04728622,151.39,151.35,0.04367033]
[1749222429579,0.04728622,151.39,151.37,6.6009]
[1749222429781,0.04728622,151.39,151.35,0.04367033]
[1749222430281,0.04728622,151.39,151.35,6.64537033]
[1749222430478,0.04728622,151.39,151.35,0.04367033]
[1749222430781,6.6013,151.37,151.35,0.04367033]
[1749222431373,6.6007,151.38,151.35,0.04367033]
[1749222431674,0.04728622,151.39,151.35,0.04367033]
[1749222432383,0.04728622,151.39,151.36,6.6015]
[1749222432578,6.6007,151.38,151.35,0.04367033]
[1749222433079,6.6007,151.38,151.35,6.64537033]
[1749222433279,0.04728622,151.39,151.35,0.04367033]
[1749222433587,20.71489233,151.36,151.35,0.04367033]
[1749222433784,27.31639233,151.36,151.35,0.04367033]
[1749222434081,36.84728622,151.39,151.35,0.04367033]
[1749222434278,0.04728622,151.39,151.35,0.04367033]
[1749222434481,0.04728622,151.39,151.36,6.6012]
[1749222434680,0.04728622,151.39,151.35,0.04367033]
[1749222435083,0.04728622,151.39,151.37,6.6007]
[1749222435677,0.04728622,151.39,151.38,6.6006]
[1749222436077,0.04728622,151.39,151.35,0.04367033]
[1749222436278,0.04728622,151.39,151.37,6.6009]
[1749222436577,0.04728622,151.39,151.35,0.04367033]
[1749222437283,6.6008,151.38,151.35,0.04367033]
[1749222437681,0.04728622,151.39,151.35,0.04367033]
[1749222438782,6.64778622,151.39,151.35,0.04367033]
[1749222439385,6.64778622,151.39,151.36,6.6015]
[1749222440079,6.6008,151.38,151.35,0.04367033]
[1749222440276,0.04728622,151.39,151.35,0.04367033]
[1749222440982,0.04728622,151.39,151.36,6.6011]
[1749222441178,0.04728622,151.39,151.35,0.04367033]
[1749222441581,0.04728622,151.39,151.38,6.6006]
[1749222441782,36.8,151.44,151.37,20.71489233]
[1749222441977,36.8,151.47,151.37,20.71489233]
[1749222442178,36.8,151.47,151.4,6.5997]
[1749222442382,36.8,151.47,151.37,20.71489233]
[1749222442780,36.8,151.47,151.4,0.05061637]
[1749222442781,0.04224485,151.44,151.4,0.05061637]
[1749222442984,6.5994,151.41,151.4,0.05061637]
[1749222443490,20.71489233,151.42,151.33,36.8]
[1749222443688,2.2685,151.4,151.33,36.8]
[1749222443985,22.98339233,151.4,151.31,20.71489233]
[1749222444182,20.71489233,151.38,151.3,36.8]
[1749222444386,0.04332819,151.36,151.32,0.04310492]
[1749222446979,6.602,151.35,151.32,0.04310492]
[1749222447285,0.04332819,151.36,151.32,0.04310492]
[1749222447880,6.6026,151.34,151.32,0.04310492]
[1749222448081,0.04332819,151.36,151.32,0.04310492]
[1749222448485,6.64512819,151.36,151.33,6.6025]
[1749222448680,6.64512819,151.36,151.32,0.04310492]
[1749222448681,0.04332819,151.36,151.32,0.04310492]
[1749222449087,6.64522819,151.36,151.32,6.64610492]
[1749222449285,0.04332819,151.36,151.32,0.04310492]
[1749222450083,6.6026,151.34,151.32,0.04310492]
[1749222450691,6.6021,151.35,151.32,0.04310492]
[1749222450887,0.04332819,151.36,151.32,0.04310492]
[1749222451892,6.64482819,151.36,151.33,6.6026]
[1749222452496,6.64482819,151.36,151.32,6.64610492]
[1749222452703,0.04332819,151.36,151.32,0.04310492]
[1749222453494,0.04332819,151.36,151.33,6.6027]
[1749222453890,6.64522819,151.36,151.33,6.6027]
[1749222454595,0.04332819,151.36,151.33,12.17042751]
[1749222455103,0.04332819,151.36,151.35,6.6019]
[1749222455498,0.04332819,151.36,151.34,6.6021]
[1749222455895,0.04332819,151.36,151.33,12.17042751]
[1749222456401,0.04332819,151.36,151.34,6.6024]
[1749222456796,0.04332819,151.36,151.33,12.17042751]
[1749222457600,0.04332819,151.36,151.35,6.6019]
[1749222458302,0.04332819,151.36,151.35,18.77232751]
[1749222458504,36.8,151.47,151.35,20.38983174]
[1749222458697,4.49680539,151.46,151.43,12.17042751]
[1749222458899,6.6832,151.49,151.44,6.5976]
[1749222459404,6.597,151.47,151.45,0.04614197]
[1749222460213,6.64107808,151.48,151.45,6.64364197]
[1749222460506,0.04467808,151.48,151.45,0.04614197]
[1749222460806,0.04467808,151.48,151.46,6.5968]
[1749222461411,0.04467808,151.48,151.47,6.5967]
[1749222461605,0.04467808,151.48,151.45,12.21656948]
[1749222462305,0.04467808,151.48,151.45,0.04614197]
[1749222462501,12.21510559,151.48,151.45,0.04614197]
[1749222462904,14.49910559,151.48,151.45,0.04614197]
[1749222463106,2.32867808,151.48,151.45,0.04614197]
[1749222463405,6.8351478,151.48,151.45,0.04614197]
[1749222463612,2.32867808,151.48,151.45,0.04614197]
[1749222464010,0.04467808,151.48,151.45,0.04614197]
[1749222465207,0.04467808,151.48,151.46,6.5968]
[1749222465609,0.04467808,151.48,151.45,0.04614197]
[1749222466915,0.04467808,151.48,151.46,6.597]
[1749222467511,0.04467808,151.48,151.47,6.5967]
[1749222469415,41.2099,151.54,151.49,6.5955]
[1749222470016,6.5948,151.52,151.49,6.5955]
[1749222470518,6.6453299,151.52,151.49,6.64121219]
[1749222470719,0.0505299,151.52,151.49,0.04571219]
[1749222471812,0.0505299,151.52,151.5,6.5951]
[1749222472118,0.0505299,151.52,151.49,0.04571219]
[1749222472414,6.6454299,151.52,151.49,0.04571219]
[1749222472812,0.0505299,151.52,151.49,0.04571219]
[1749222473123,6.595,151.51,151.49,0.04571219]
[1749222473617,6.595,151.51,151.49,6.64151219]
[1749222473817,6.6452299,151.52,151.49,6.64151219]
[1749222474016,0.0505299,151.52,151.5,6.5953]
[1749222475421,12.17042751,151.65,151.49,0.04571219]
[1749222475422,2.2297,151.58,151.51,12.17042751]
[1749222475622,36.76,151.6,151.53,12.17042751]
[1749222476115,6.5918,151.59,151.55,6.5932]
[1749222476317,0.0428413,151.59,151.55,6.63893512]
[1749222476715,6.6345413,151.59,151.55,6.63893512]
[1749222477008,0.0428413,151.59,151.55,6.63893512]
[1749222477410,6.5922,151.58,151.55,6.63893512]
[1749222477821,0.0428413,151.59,151.55,0.04573512]
[1749222478622,6.592,151.58,151.55,0.04573512]
[1749222478826,0.0428413,151.59,151.55,0.04573512]
[1749222479214,12.17042751,151.57,151.49,36.76]
[1749222479420,12.17042751,151.55,151.48,36.76]
[1749222479622,12.17042751,151.55,151.49,6.5956]
[1749222479819,6.5944,151.53,151.49,6.5956]
[1749222480322,12.21697817,151.53,151.49,0.04848757]
[1749222481020,6.5946,151.52,151.49,0.04848757]
[1749222481223,0.04655066,151.53,151.49,0.04848757]
[1749222481518,12.21697817,151.53,151.49,0.04848757]
[1749222481822,6.596,151.49,151.41,36.76]
[1749222482025,18.76642751,151.49,151.41,36.76]
[1749222482223,12.17042751,151.49,151.41,36.76]
[1749222482725,0.04540421,151.47,151.43,0.04511083]
[1749222483827,0.04540421,151.47,151.44,6.598]
[1749222484119,0.04540421,151.47,151.43,0.04511083]
[1749222484727,6.64230421,151.47,151.43,0.04511083]
[1749222485126,0.04540421,151.47,151.43,0.04511083]
[1749222485328,6.5974,151.46,151.43,0.04511083]
[1749222485722,0.04540421,151.47,151.43,0.04511083]
[1749222486626,0.04540421,151.47,151.43,6.64341083]
[1749222486827,0.04540421,151.47,151.43,0.04511083]
[1749222487218,6.5975,151.46,151.43,0.04511083]
[1749222487619,12.17042751,151.46,151.43,0.04511083]
[1749222487822,6.5979,151.45,151.43,0.04511083]
[1749222488027,12.17042751,151.46,151.43,0.04511083]
[1749222488325,0.04540421,151.47,151.43,0.04511083]
[1749222488525,0.04540421,151.47,151.44,12.17042751]
[1749222488925,0.04540421,151.47,151.46,6.5972]
[1749222491524,0.04540421,151.47,151.46,18.76762751]
[1749222491831,6.5942,151.53,151.5,6.5953]
[1749222492329,6.5942,151.53,151.5,6.5951]
[1749222492623,6.5939,151.54,151.48,12.17042751]
[1749222492829,0.04262457,151.53,151.49,0.0507362]
[1749222493128,0.04262457,151.53,151.5,12.17042751]
[1749222493518,0.04262457,151.53,151.52,6.5945]
[1749222493824,0.04262457,151.53,151.5,12.17042751]
[1749222494019,0.04262457,151.53,151.51,6.5947]
[1749222494224,0.04262457,151.53,151.49,0.0507362]
[1749222495426,0.04262457,151.53,151.49,6.6462362]
[1749222495727,6.5948,151.52,151.49,0.0507362]
[1749222496319,6.5948,151.52,151.49,6.6464362]
[1749222496524,6.5951,151.51,151.49,0.0507362]
[1749222497427,0.04262457,151.53,151.49,0.0507362]
[1749222497622,12.17042751,151.52,151.49,0.0507362]
[1749222497830,12.17042751,151.5,151.4,37.04]
[1749222498136,12.17042751,151.46,151.37,41.3221]
[1749222498424,12.17042751,151.44,151.37,2.1459]
[1749222498625,49.21042751,151.44,151.38,6.6004]
[1749222498829,6.5996,151.41,151.39,0.04214811]
[1749222499828,6.5998,151.4,151.39,0.04214811]
[1749222500427,49.23042751,151.4,151.31,37.06]
[1749222500729,12.17042751,151.38,151.31,37.06]
[1749222501322,0.04522126,151.36,151.33,0.04924018]
[1749222501527,0.04522126,151.36,151.33,6.65194018]
[1749222501734,0.04522126,151.36,151.33,0.04924018]
[1749222502224,6.64702126,151.36,151.33,0.04924018]
[1749222502933,6.6022,151.35,151.33,0.04924018]
[1749222503333,6.64672126,151.36,151.33,0.04924018]
[1749222503728,0.04522126,151.36,151.33,0.04924018]
[1749222503934,0.04522126,151.36,151.28,37.06]
[1749222503935,12.17042751,151.34,151.28,37.06]
[1749222504230,12.17042751,151.34,151.27,2.1625]
[1749222504427,6.603,151.33,151.3,6.6041]
[1749222504625,6.603,151.33,151.27,2.1625]
[1749222505026,0.04906269,151.32,151.28,0.04570785]
[1749222505333,0.04906269,151.32,151.29,6.6043]
[1749222505533,0.04906269,151.32,151.28,0.04570785]
[1749222506829,0.04906269,151.32,151.28,6.65040785]
[1749222508538,6.65266269,151.32,151.28,6.65040785]
[1749222508722,12.2194902,151.32,151.28,0.04570785]
[1749222508923,12.17042751,151.3,151.21,37.08]
[1749222509130,12.17042751,151.26,151.18,37.08]
[1749222509329,12.17042751,151.26,151.22,6.6075]
[1749222509834,18.77662751,151.26,151.22,6.6075]
[1749222510129,18.82227962,151.26,151.22,6.65485245]
[1749222510334,6.6063,151.25,151.22,0.04735245]
[1749222510827,18.82197962,151.26,151.22,6.65485245]
[1749222511034,12.21607962,151.26,151.22,6.65485245]
[1749222511232,12.21607962,151.26,151.22,0.04735245]
[1749222512134,18.82227962,151.26,151.22,6.65465245]
[1749222512630,0.04565211,151.26,151.23,6.6069]
[1749222512938,0.04565211,151.26,151.22,0.04735245]
[1749222513335,6.65175211,151.26,151.22,6.65455245]
[1749222513536,0.04565211,151.26,151.22,6.65455245]
[1749222514340,6.65175211,151.26,151.22,6.65455245]
[1749222514740,0.04565211,151.26,151.22,0.04735245]
[1749222515240,0.04565211,151.26,151.23,6.6069]
[1749222515940,0.04565211,151.26,151.22,0.04735245]
[1749222516342,0.04565211,151.26,151.23,6.6069]
[1749222517539,0.04565211,151.26,151.24,6.6067]
[1749222517740,0.04565211,151.26,151.22,0.04735245]
[1749222518140,6.65155211,151.26,151.23,6.6069]
[1749222518540,0.04565211,151.26,151.22,0.04735245]
[1749222518843,0.04565211,151.26,151.22,12.21777996]
[1749222519141,0.04565211,151.26,151.25,6.6063]
[1749222519440,0.04565211,151.26,151.22,12.21777996]
[1749222520436,0.04565211,151.26,151.24,6.6065]
[1749222520839,0.04565211,151.26,151.22,0.04735245]
[1749222521437,12.17042751,151.24,151.22,0.04735245]
[1749222521638,12.17042751,151.24,151.15,43.2192]
[1749222521838,12.17042751,151.22,151.15,38.868]
[1749222522038,12.17042751,151.22,151.15,36.68]
[1749222522238,12.17042751,151.2,151.12,36.68]
[1749222522639,0.04667243,151.18,151.14,0.04878646]
[1749222522835,0.04667243,151.18,151.15,6.6106]
[1749222523945,0.04667243,151.18,151.17,12.17042751]
[1749222524139,36.68,151.28,151.19,12.17042751]
[1749222524339,36.68,151.28,151.22,6.6073]
[1749222524540,12.17042751,151.27,151.18,4.3189]
[1749222525042,0.04317344,151.24,151.21,0.05015407]
[1749222525346,0.04317344,151.24,151.21,6.65795407]
[1749222525946,0.04317344,151.24,151.21,0.05015407]
[1749222526449,6.6076,151.22,151.21,0.05015407]
[1749222526646,36.72317344,151.24,151.21,0.05015407]
[1749222526846,6.6075,151.23,151.21,0.05015407]
[1749222527442,6.6076,151.22,151.21,0.05015407]
[1749222527943,6.6074,151.23,151.21,0.05015407]
[1749222528940,6.6076,151.22,151.21,0.05015407]
[1749222529149,36.72317344,151.24,151.21,0.05015407]
[1749222530047,6.6074,151.23,151.21,0.05015407]
[1749222531645,36.72317344,151.24,151.21,0.05015407]
[1749222532049,6.6076,151.23,151.21,0.05015407]
[1749222532245,36.72317344,151.24,151.21,0.05015407]
[1749222532954,36.72317344,151.24,151.14,41.0433]
[1749222532955,12.17042751,151.23,151.14,41.0433]
[1749222533255,12.17042751,151.21,151.14,2.2127]
[1749222533456,36.68,151.2,151.14,2.2127]
[1749222534054,0.04798782,151.19,151.15,0.04305128]
[1749222534555,6.65718782,151.19,151.16,6.6099]
[1749222535550,0.04798782,151.19,151.15,6.65355128]
[1749222535751,0.04798782,151.19,151.15,0.04305128]
[1749222536057,0.04798782,151.19,151.15,6.65365128]
[1749222536453,0.04798782,151.19,151.15,0.04305128]
[1749222536655,0.04798782,151.19,151.15,6.65355128]
[1749222536958,12.17042751,151.17,151.15,0.04305128]
[1749222537254,36.7,151.16,151.11,6.6122]
[1749222537851,6.6109,151.15,151.11,6.6122]
[1749222538055,0.0454418,151.15,151.11,6.65552621]
[1749222538254,6.6114,151.14,151.11,0.04332621]
[1749222538450,0.0454418,151.15,151.11,0.04332621]
[1749222539559,12.21586931,151.15,151.11,0.04332621]
[1749222539958,6.612,151.12,151.11,0.04332621]
[1749222540560,6.612,151.12,150.98,62.0]
[1749222540561,36.7,151.12,151.02,36.7]
[1749222540763,12.17042751,151.09,151.0,12.17042751]
[1749222541059,12.17042751,151.05,150.98,5.57173178]
[1749222541364,12.17042751,151.05,150.98,4.4197]
[1749222541561,0.0482958,151.03,151.0,0.04531175]
[1749222542566,0.0482958,151.03,151.0,12.21573926]
[1749222542749,0.0482958,151.03,151.02,6.6164]
[1749222542955,0.0482958,151.03,151.0,0.04531175]
[1749222543257,12.21872331,151.03,151.0,0.04531175]
[1749222543461,12.21872331,151.03,150.95,2.241]
[1749222543863,6.6164,151.02,150.99,6.6176]
[1749222544159,0.0482958,151.03,151.0,12.17042751]
[1749222544355,0.0482958,151.03,151.0,12.22003511]
[1749222544553,48.89042751,151.1,151.02,12.17042751]
[1749222544750,36.72,151.1,151.02,12.17042751]
[1749222545157,6.6136,151.09,151.06,6.6146]
[1749222545368,36.72,151.1,151.02,12.17042751]
[1749222545566,0.04660954,151.08,151.04,12.21686696]
[1749222546050,0.04660954,151.08,151.04,0.04643945]
[1749222547055,0.04660954,151.08,151.04,6.66163945]
[1749222547254,0.04660954,151.08,151.04,0.04643945]
[1749222548065,6.66060954,151.08,151.04,6.66183945]
[1749222548569,0.04660954,151.08,151.05,6.615]
[1749222549062,0.04660954,151.08,151.04,0.04643945]
[1749222549257,0.04660954,151.08,151.04,6.66153945]
[1749222550063,0.04660954,151.08,151.05,6.615]
[1749222550367,6.66060954,151.08,151.04,0.04643945]
[1749222550567,6.66060954,151.08,151.04,6.66163945]
[1749222550970,0.04660954,151.08,151.04,0.04643945]
[1749222551164,0.04660954,151.08,151.05,6.615]
[1749222551356,0.04660954,151.08,151.04,12.21686696]
[1749222551563,0.04660954,151.08,151.07,6.6142]
[1749222551761,0.04660954,151.08,151.04,12.21686696]
[1749222551967,0.04660954,151.08,151.06,12.17042751]
[1749222552271,37.0,151.14,151.09,6.6131]
[1749222552661,12.17042751,151.11,150.98,380.94]
[1749222552970,6.614,151.08,151.04,6.6152]
[1749222553175,6.614,151.08,151.01,12.17042751]
[1749222553468,0.04336004,151.06,151.04,6.6155]
[1749222553669,0.04336004,151.06,151.03,0.05001538]
[1749222554069,0.04336004,151.06,151.05,6.615]
[1749222554766,6.5784,151.16,151.05,12.17042751]
[1749222554970,6.6117,151.13,151.09,12.17042751]
[1749222555268,6.6117,151.13,151.06,2.2217]
[1749222555269,12.17042751,151.12,151.06,8.8361]
[1749222555566,6.6136,151.09,151.06,6.6144]
[1749222555769,0.04738582,151.09,151.06,0.0465271]
[1749222555970,6.614,151.08,151.06,0.0465271]
[1749222556161,0.04738582,151.09,151.06,0.0465271]
[1749222556572,6.66098582,151.09,151.06,0.0465271]
[1749222556874,0.04738582,151.09,151.06,0.0465271]
[1749222557068,6.66078582,151.09,151.06,6.6610271]
[1749222557271,0.04738582,151.09,151.06,6.6610271]
[1749222557666,0.04738582,151.09,151.06,0.0465271]
[1749222559373,6.66088582,151.09,151.06,6.6609271]
[1749222559876,12.21781333,151.09,151.06,0.0465271]
[1749222560574,6.614,151.08,151.06,0.0465271]
[1749222560770,12.21781333,151.09,151.06,0.0465271]
[1749222560967,6.6156,151.04,151.01,6.6166]
[1749222561173,12.17042751,151.07,150.99,2.2123]
[1749222561372,49.17042751,151.07,150.99,2.2123]
[1749222561570,6.615,151.06,151.02,6.6161]
[1749222561872,49.17042751,151.07,150.99,2.2123]
[1749222562079,6.66446944,151.05,151.02,6.6162]
[1749222562376,0.04916944,151.05,151.01,0.04634014]
[1749222563175,0.04916944,151.05,151.02,6.6163]
[1749222563378,0.04916944,151.05,151.01,0.04634014]
[1749222564169,6.66446944,151.05,151.02,6.6161]
[1749222564371,0.04916944,151.05,151.01,0.04634014]
[1749222565173,6.6158,151.04,151.01,6.66304014]
[1749222565474,0.04916944,151.05,151.01,0.04634014]
[1749222565475,12.21959695,151.05,151.01,0.04634014]
[1749222565868,6.6162,151.03,151.01,0.04634014]
[1749222566980,6.6157,151.04,151.01,6.66304014]
[1749222567176,12.21959695,151.05,151.01,0.04634014]
[1749222567381,6.6163,151.03,151.01,0.04634014]
[1749222567578,12.21959695,151.05,151.01,0.04634014]
[1749222568180,0.04916944,151.05,151.01,0.04634014]
[1749222568674,0.04916944,151.05,151.03,6.6157]
[1749222568983,0.04916944,151.05,151.01,0.04634014]
[1749222569185,6.66446944,151.05,151.03,6.6159]
[1749222569483,0.04916944,151.05,151.01,0.04634014]
[1749222569683,6.6159,151.04,151.01,6.66294014]
[1749222569886,0.04916944,151.05,151.01,6.66294014]
[1749222570078,0.04916944,151.05,151.01,0.04634014]
[1749222570284,6.66446944,151.05,151.01,0.04634014]
[1749222570789,6.6159,151.04,151.01,6.66294014]
[1749222570980,6.6159,151.04,151.01,0.04634014]
[1749222571382,6.6159,151.04,151.01,6.66294014]
[1749222571686,6.6159,151.04,151.01,0.04634014]
[1749222571882,6.6159,151.04,151.01,6.66284014]
[1749222572088,6.66446944,151.05,151.01,0.04634014]
[1749222572483,6.66446944,151.05,151.02,6.6162]
[1749222572683,6.66446944,151.05,151.01,0.04634014]
[1749222572985,6.6156,151.04,151.01,0.04634014]
[1749222573186,0.04916944,151.05,151.01,0.04634014]
[1749222573379,6.6158,151.04,151.01,0.04634014]
[1749222573584,0.04916944,151.05,151.01,0.04634014]
[1749222573585,0.04916944,151.05,151.01,6.66314014]
[1749222573987,0.04916944,151.05,151.01,0.04634014]
[1749222574491,6.6164,151.02,151.01,0.04634014]
[1749222575002,0.04916944,151.05,151.01,0.04634014]
[1749222575787,0.04916944,151.05,151.02,6.6163]
[1749222575991,6.66446944,151.05,151.02,6.6163]
[1749222576187,0.04916944,151.05,151.01,0.04634014]
[1749222577291,6.66436944,151.05,151.02,6.6161]
[1749222577491,0.04916944,151.05,151.01,0.04634014]
[1749222578899,0.04916944,151.05,151.03,6.6157]
[1749222579095,0.04916944,151.05,151.01,0.04634014]
[1749222580401,6.6164,151.02,151.01,0.04634014]
[1749222580991,0.04916944,151.05,151.01,0.04634014]
[1749222581500,6.66436944,151.05,151.01,0.04634014]
[1749222581902,6.66436944,151.05,151.02,6.6161]
[1749222582196,0.04916944,151.05,151.01,0.04634014]
[1749222582794,6.6157,151.04,151.01,0.04634014]
[1749222583002,0.04916944,151.05,151.01,0.04634014]
[1749222583396,6.6164,151.02,151.01,0.04634014]
[1749222584001,6.6161,151.03,151.01,0.04634014]
[1749222584201,0.04916944,151.05,151.01,0.04634014]
[1749222584396,6.6158,151.04,151.01,6.66294014]
[1749222584702,0.04916944,151.05,151.01,0.04634014]
[1749222585099,6.6162,151.03,151.01,0.04634014]
[1749222585604,12.17042751,151.03,151.01,0.04634014]
[1749222585805,49.11042751,151.03,151.01,0.04634014]
[1749222585997,6.6164,151.02,151.01,0.04634014]
[1749222586502,49.11042751,151.03,150.97,6.13530918]
[1749222586704,12.17042751,151.01,150.96,6.13530918]
[1749222587296,6.6179,150.99,150.96,6.13530918]
[1749222587496,0.0465513,150.99,150.96,6.17777151]
[1749222589603,0.0465513,150.99,150.96,0.04246233]
[1749222589805,6.6642513,150.99,150.97,6.6183]
[1749222589999,6.6642513,150.99,150.96,0.04246233]
[1749222590405,0.0465513,150.99,150.96,6.17777151]
[1749222590805,0.0465513,150.99,150.98,12.75340918]
[1749222591500,0.0465513,150.99,150.98,6.6181]
[1749222591695,0.0465513,150.99,150.98,12.75340918]
[1749222591900,0.0465513,150.99,150.98,6.6181]
[1749222592302,0.0465513,150.99,150.98,12.75340918]
[1749222592706,0.0465513,150.99,150.98,6.6181]
[1749222593407,0.0465513,150.99,150.98,12.78680678]
[1749222594512,0.0465513,150.99,150.97,6.16870678]
[1749222594904,0.0465513,150.99,150.97,12.78720678]
[1749222595108,6.6645513,150.99,150.97,6.16870678]
[1749222595308,6.6645513,150.99,150.96,6.21116911]
[1749222595506,6.6645513,150.99,150.96,12.82986911]
[1749222595906,6.6645513,150.99,150.96,6.21116911]
[1749222596607,6.6645513,150.99,150.97,6.6186]
[1749222596807,6.6645513,150.99,150.96,6.21116911]
[1749222597210,0.0465513,150.99,150.96,6.21116911]
[1749222598312,0.0465513,150.99,150.97,6.6183]
[1749222598909,0.0465513,150.99,150.98,6.6181]
[1749222599415,0.0465513,150.99,150.96,6.21116911]
[1749222599609,6.6644513,150.99,150.97,6.6185]
[1749222599815,0.0465513,150.99,150.97,6.6185]
[1749222600204,0.0465513,150.99,150.96,6.21116911]
[1749222600409,6.6645513,150.99,150.96,12.82996911]
[1749222600712,0.0465513,150.99,150.96,0.04246233]
[1749222600911,6.6186,150.97,150.96,0.04246233]
[1749222601111,0.0465513,150.99,150.96,0.04246233]
[1749222601409,6.6643513,150.99,150.96,0.04246233]
[1749222601614,6.6643513,150.99,150.96,6.21116911]
[1749222601615,0.0465513,150.99,150.96,6.21116911]
[1749222601810,0.0465513,150.99,150.96,0.04246233]
[1749222602313,6.6182,150.98,150.96,0.04246233]
[1749222602513,0.0465513,150.99,150.96,0.04246233]
[1749222603014,0.0465513,150.99,150.96,6.66136233]
[1749222603416,6.6644513,150.99,150.96,6.66136233]
[1749222603809,0.0465513,150.99,150.96,0.04246233]
[1749222604118,6.6184,150.98,150.96,0.04246233]
[1749222604312,8.1512218,150.98,150.96,0.04246233]
[1749222604509,0.0465513,150.99,150.96,0.04246233]